Cogmind - Beta 9 *** ADVENTURER MODE // 2019.10.29 @ 03:36:02 Player: Snowflake Result: Destroyed by B-99 Colossus with Multirail Performance ------------- Evolutions (9) 4500 Regions Visited (19) 3800 Robots Destroyed (522) 2610 Value Destroyed (23394) 23394 Prototype IDs (14) 280 Alien Tech Used (0) 0 Bonus (5597) 5597 TOTAL SCORE: 40181 Bonus ------- High Alert Combat Kills 1887 Follower Combat Kills 701 Entered Garrisons 800 Used RIF Installer 2000 Aligned with FarCom 300 Friendly Fire -91 Cogmind --------- Core Integrity 0/1600 Matter 400/400 Energy 100/100 System Corruption 22% Temperature Cool (2) Location -1/Access Parts ------- Power (2) Propulsion (4) Centrium Leg Utility (15) Advanced Heat Sink High-capacity Storage Unit Medium Matter Pod Seismic Analyzer Improved Targeting Computer Hacking Suite Relay Coupler [Swarmer] (59) Weapon (4) Axe Inventory (12) Biometal Leg Biometal Leg Biometal Leg Phase Gun Heavy Disruptor Cannon Heavy Machine Gun KE Penetrator KE Penetrator KE Penetrator KE Penetrator Railgun Peak State ------------ Power Reinforced Antimatter Reactor Particle Reactor Propulsion Advanced Heavy Treads Improved Heavy Siege Treads Utility Advanced Cryofiber Web Advanced Heat Sink High-capacity Storage Unit High-capacity Storage Unit High-capacity Storage Unit Large Matter Pod Advanced Sensor Array Improved Targeting Computer Advanced Target Analyzer Advanced Transmission Jammer Improved Hacking Suite Experimental Hacking Suite Relay Coupler [Swarmer] Relay Coupler [Sentry] Relay Coupler [Demolisher] Weapon KE Penetrator Railgun Railgun Advanced Remote Datajack Inventory Micro Fission Core Light Particle Reactor Light Quantum Reactor Light Quantum Reactor Light Quantum Reactor Light Quantum Reactor Medium Treads Biometal Leg Centrium Leg Small Matter Pod Advanced Force Field Advanced Force Field Relay Coupler [Swarmer] Tesla Rifle Gamma Rifle Phase Gun Phase Gun Phase Gun Advanced Plasma Rifle Matter Neutralizer Enhanced Nova Cannon Heavy Machine Gun Linear Accelerator Gamma Bomb Array Gamma Bomb Array Advanced Remote Datajack Powered Hammer Axe [Rating: 154] Favorites ----------- Power Improved Ion Engine Engine Improved Ion Engine Power Core Enhanced Nuclear Core Reactor Particle Reactor Propulsion Light Treads Treads Light Treads Leg Improved Aluminum Leg Wheel Wheel Flight Unit Nuclear Pulse Thruster Utility High-capacity Storage Unit Device Advanced Heat Sink Storage High-capacity Storage Unit Processor Enhanced Optical Array Hackware Relay Coupler [Swarmer] Protection Hardened Medium Armor Plating Weapon Flak Gun Energy Gun Gamma Rifle Energy Cannon Heavy Plasma Cannon Ballistic Gun Flak Gun Ballistic Cannon Heavy Flak Cannon Launcher Heavy Rocket Launcher Special Weapon Advanced Remote Datajack Impact Weapon Powered Hammer Slashing Weapon Axe Piercing Weapon Spear Special Melee Weapon Dirty Datajack Build | -11 -10 -10 -10 -9 -8 -7 -7 -7 -7 -6 -6 -5 -5 -5 -4 -4 -3 -2 -1 ------- Run | Scr Mat Min Exi Min Mat Fac Gar Fac Gar Fac Gar Fac Upp Upp Fac Gar Res Res Acc Slots Evolved 18 | . . . . . 4 2 . . . 2 . 2 . . 2 . 2 2 2 Power 1 | . . . . . . . . . . . . . . . . . 1 . . Propulsion 2 | . . . . . 2 . . . . . . . . . . . . . . Utility 13 | . . . . . 2 . . . . 2 . 2 . . 2 . 1 2 2 Weapon 2 | . . . . . . 2 . . . . . . . . . . . . . Parts Attached 485 | 7 15 2 4 3 35 14 16 22 12 3 6 47 19 2 20 36 67 40 115 Power 46 | 1 2 . . . 2 1 1 1 3 1 . 4 . . . 2 10 4 14 Engine 9 | 1 2 . . . 2 . . 1 . 1 . 1 . . . . . . 1 Core 17 | . . . . . . 1 1 . 3 . . 3 . . . 2 5 1 1 Reactor 20 | . . . . . . . . . . . . . . . . . 5 3 12 Propulsion 99 | 2 3 . . . 16 4 4 12 3 . . 16 1 2 4 1 5 2 24 Treads 70 | . . . . . 13 4 4 12 3 . . 14 . . 4 1 5 2 8 Leg 23 | . 2 . . . 3 . . . . . . . . 2 . . . . 16 Wheel 5 | 2 1 . . . . . . . . . . 2 . . . . . . . Hover . | . . . . . . . . . . . . . . . . . . . . Flight 1 | . . . . . . . . . . . . . 1 . . . . . . Utility 99 | 2 2 . 4 . 7 2 1 1 . 2 1 10 3 . 9 13 16 7 19 Device 39 | . . . . . 2 2 . . . 1 . 4 2 . 7 2 5 5 9 Storage 22 | 2 2 . 4 . 3 . . . . . . . 1 . . 1 4 1 4 Processor 13 | . . . . . 1 . . 1 . 1 . 2 . . 1 1 2 . 4 Hackware 18 | . . . . . . . . . . . . 2 . . 1 8 4 1 2 Protection 7 | . . . . . 1 . 1 . . . 1 2 . . . 1 1 . . Artifact . | . . . . . . . . . . . . . . . . . . . . Weapon 241 | 2 8 2 . 3 10 7 10 8 6 . 5 17 15 . 7 20 36 27 58 Energy Gun 52 | 1 . . . . . . . . . . . 2 3 . . 3 10 10 23 Energy Cannon 20 | . . . . . . 2 1 . 1 . . 2 3 . 5 1 . . 5 Ballistic Gun 94 | 1 5 2 . 2 5 5 7 7 4 . 3 5 7 . 1 8 13 7 12 Ballistic Cannon 7 | . . . . . . . . . . . 1 3 2 . . . . . 1 Launcher 20 | . 2 . . . 1 . 2 1 1 . 1 4 . . . . 2 2 4 Special Weapon 25 | . . . . . . . . . . . . 1 . . . 5 8 5 6 Impact Weapon 3 | . 1 . . . . . . . . . . . . . . . 1 . 1 Slashing Weapon 13 | . . . . . . . . . . . . . . . 1 1 2 3 6 Piercing Weapon 5 | . . . . 1 4 . . . . . . . . . . . . . . Special Melee Weapon 2 | . . . . . . . . . . . . . . . . 2 . . . Unidentified Prototypes 6 | . . . . . 1 . . 1 . . . . . . . 1 2 . 1 Parts Lost 164 | . . . . . 9 1 1 . 1 . 2 29 5 . 4 9 19 14 70 Power 25 | . . . . . 2 . . . 1 . . 4 . . . 1 3 2 12 Propulsion 40 | . . . . . 5 1 . . . . . 12 1 . . . 3 2 16 Utility 38 | . . . . . 1 . 1 . . . 1 3 . . 1 5 5 1 20 Weapon 61 | . . . . . 1 . . . . . 1 10 4 . 3 3 8 9 22 Highest Loss Streak 37 | . . . . . 3 1 1 . 1 . 2 9 3 . 2 5 3 7 37 Average Slot Usage (%) 94 | . 99 100 100 100 98 99 100 99 96 100 99 93 89 89 89 88 89 90 86 Engine 4 | . 13 14 14 14 8 2 . 6 1 . 6 3 . . . . . . . Core 2 | . . . . . . 4 7 . 2 5 . 1 5 5 5 5 4 4 1 Reactor 1 | . . . . . . . . . . . . . . . . . 4 4 5 Treads 16 | . . . . . 26 29 30 29 30 26 26 19 11 8 9 10 8 8 6 Leg 4 | . 1 28 28 28 9 . . . . . . . . 3 . . . . 2 Wheel 1 | . 26 . . . . . . . . . . . . . . . . . . Device 4 | . . . . . 1 6 1 . . 6 6 4 10 11 15 4 1 6 14 Storage 20 | . 28 28 28 28 25 23 23 23 23 20 20 17 17 17 15 15 15 15 16 Processor 6 | . . . . . 8 . . 6 7 13 8 9 11 11 10 9 4 4 10 Hackware 7 | . . . . . . . . . . . . 9 5 5 8 19 28 28 14 Energy Gun 1 | . . . . . . . . . . . . 1 . . . 1 3 5 4 Ballistic Gun 17 | . 26 28 28 27 9 25 29 29 29 26 22 7 12 17 11 15 13 7 7 Ballistic Cannon 1 | . . . . . . . . . . . 3 8 2 . . . . . . Piercing Weapon 1 | . . . . . 7 2 . . . . . . . . . . . . . Naked Turns . | . . . . . . . . . . . . . . . . . . . . Heaviest Build 169 | 15 29 29 77 77 115 120 125 131 123 126 138 146 150 121 142 140 168 150 169 Greatest Support 145 | 26 26 26 26 26 85 83 83 80 80 80 80 97 97 97 140 145 145 145 145 Greatest Overweight (x) 49 | . 1 1 2 2 2 1 1 2 1 1 1 44 1 4 3 . 1 2 49 Average Overweight (x) 1 | . . . 1 2 1 1 1 1 1 1 1 1 1 1 . . . . 1 Largest Inventory Capacity 34 | 8 12 12 20 20 28 28 28 28 28 28 28 28 28 28 28 28 34 28 28 Average Capacity 26 | 6 11 12 18 20 26 28 28 28 28 28 28 28 28 28 28 28 29 28 26 Most Carried 32 | 4 12 12 19 20 28 28 28 28 28 28 28 28 25 28 28 28 32 28 28 Average Carried 24 | 2 11 11 16 19 24 27 27 27 27 26 26 24 20 25 27 26 26 25 22 Final Capacity 12 | . . . . . . . . . . . . . . . . . . . 12 Final Carried 12 | . . . . . . . . . . . . . . . . . . . 12 Class Distribution -------------------- 22% | Bothacker-Gunner 20% | Hauler-Mutant 18% | Scavenger-Skirmisher 8% | Scavenger-Gunner 6% | Mutant 5% | Bothacker-Mutant 5% | Scavenger-Mutant 5% | Scavenger-Tank 3% | Botlord-Gunner Dominant Class ---------------- Mutant | -10/Materials Mutant | -10/Mines Hauler-Mutant | -10/Exiles Hauler-Mutant | -9/Mines Hauler-Mutant | -8/Materials Scavenger-Skirmisher | -7/Factory Scavenger-Tank | -7/Garrison Scavenger-Skirmisher | -7/Factory Scavenger-Skirmisher | -7/Garrison Scavenger-Gunner | -6/Factory Scavenger-Gunner | -6/Garrison Bothacker-Skirmisher | -5/Factory Bothacker-Gunner | -5/Upper Caves Bothacker-Gunner | -5/Upper Caves Bothacker-Gunner | -4/Factory Bothacker-Gunner | -4/Garrison Bothacker-Gunner | -3/Research Bothacker-Gunner | -2/Research Scavenger-Gunner | -1/Access Resources | -11 -10 -10 -10 -9 -8 -7 -7 -7 -7 -6 -6 -5 -5 -5 -4 -4 -3 -2 -1 ----------- Run | Scr Mat Min Exi Min Mat Fac Gar Fac Gar Fac Gar Fac Upp Upp Fac Gar Res Res Acc Matter Collected 14289 | 279 477 44 . 385 374 497 573 1287 582 70 423 2065 684 26 530 976 2113 888 2016 Remotely . | . . . . . . . . . . . . . . . . . . . . Salvage Created 25182 | 92 490 44 . 435 1804 880 858 1748 799 123 562 4481 506 26 920 825 4708 2051 3830 Parts 1334 | 1 46 9 . 21 104 56 44 86 46 4 31 226 30 6 51 28 245 99 201 Haulers Intercepted 3 | . 1 . . . . . . 1 . . . 1 . . . . . . . Recyclers Shooed 13 | . . . . . . . . . . . . 5 . . . . 4 . 4 Parts Field Recycled . | . . . . . . . . . . . . . . . . . . . . Retrieved Matter . | . . . . . . . . . . . . . . . . . . . . Parts Self-Destructed 12 | . . . . . . . . . . . . . 12 . . . . . . Prevented . | . . . . . . . . . . . . . . . . . . . . Kills | -11 -10 -10 -10 -9 -8 -7 -7 -7 -7 -6 -6 -5 -5 -5 -4 -4 -3 -2 -1 ------- Run | Scr Mat Min Exi Min Mat Fac Gar Fac Gar Fac Gar Fac Upp Upp Fac Gar Res Res Acc Combat Hostiles Destroyed 374 | . 16 . . 4 29 15 21 28 22 2 19 62 12 1 10 12 50 26 45 Melee 35 | . . . . . 28 1 . . . . . . . . 2 1 . 3 . Guns 232 | . 11 . . 4 . 10 15 28 18 2 13 19 6 1 4 9 43 20 29 Cannons 40 | . . . . . . 4 . . . . 1 14 6 . 3 2 . . 10 AOE 53 | . 5 . . . 1 . 6 . 4 . 5 26 . . 1 . 1 . 4 Classes Destroyed 18 | 1 5 2 . 1 4 1 . . . . . 1 1 . . . . 2 . Worker 36 | . 1 . . 2 1 . . 1 . . . 16 . . . . 3 2 10 Builder 37 | . . 1 . . 1 . . 1 . . . 15 . . 1 . 9 1 8 Tunneler 6 | . . 1 . 1 . . . . . . . 3 . . . . . . 1 Hauler 3 | . 1 . . . . . . 1 . . . 1 . . . . . . . Recycler 33 | 1 . . . 3 2 1 . 2 . . . 11 . . 1 . 9 . 3 Carrier 1 | . . . . . . . . . . . . . . . . . . 1 . Mechanic 1 | . . . . . . . . . . . . 1 . . . . . . . Operator 6 | . . . . . 2 1 . 1 . . . . . . 1 . 1 . . Watcher 22 | . 3 . . . 2 4 . 2 . . . 4 . . 3 . 2 1 1 Swarmer 90 | . 9 . . . . 3 7 3 12 . 13 13 . . . 2 11 8 9 Grunt 132 | . 7 . . 3 18 4 9 14 7 1 5 22 4 . 1 7 14 9 7 Brawler 9 | . . . . 1 1 . . 1 1 . . 1 . . . 1 2 1 . Duelist 4 | . . . . . 1 . . 1 . . . 2 . . . . . . . Protector 1 | . . . . . . . . . . . . . . . . . . 1 . Sentry 33 | . . . . . 8 3 3 4 1 1 . 4 . . 1 2 3 1 2 Hunter 34 | . . . . . 1 1 1 1 1 . . 8 2 . 1 . 4 3 11 Programmer 64 | . . . . . . 4 1 4 . . 1 12 . . 7 . 16 3 16 Packrat 3 | . . . . . . . . . . . . . 3 . . . . . . Master Thief 7 | . . . . . . . . . . . . . 6 1 . . . . . Best Kill Streak 16 | 1 5 2 . 2 5 5 13 5 6 2 10 13 4 1 5 5 11 7 16 Combat Bots Only 13 | . 3 . . 2 5 4 13 4 6 2 10 8 4 1 3 5 5 7 12 Max Kills in Single Turn 5 | 1 2 1 . 1 1 2 3 3 2 1 3 5 1 1 2 1 3 2 5 Gunslinging 1 | . . . . . . . . 1 1 . 1 . . . . . 1 1 . Exploded 3 | . 2 . . . 1 . 3 . 2 . 3 3 . . 1 . 1 . 3 Melee 1 | . . . . . 1 1 . . . . . . . . 1 1 . 1 . Uniques/NPCs Destroyed . | . . . . . . . . . . . . . . . . . . . . Combat | -11 -10 -10 -10 -9 -8 -7 -7 -7 -7 -6 -6 -5 -5 -5 -4 -4 -3 -2 -1 -------- Run | Scr Mat Min Exi Min Mat Fac Gar Fac Gar Fac Gar Fac Upp Upp Fac Gar Res Res Acc Damage Taken 35618 | . 366 . . 68 2091 455 860 768 804 . 657 4975 591 . 1432 1368 6153 3345 11685 Core 4304 | . 87 . . 12 250 25 51 100 58 . 133 688 52 . 115 94 705 330 1604 Absorbed by Shields . | . . . . . . . . . . . . . . . . . . . . Reduced by Siege Mode 1743 | . . . . . . . . . . . . . . . . 163 772 258 550 Core Remaining (%) 65 | 100 . . . 60 54 . . . 66 . 84 . . 26 . 81 45 77 . Volleys Fired 824 | 3 47 2 1 24 7 30 33 53 24 2 20 121 45 5 30 47 132 59 139 Largest 4 | 2 2 2 2 2 2 4 4 4 4 4 4 4 4 3 4 4 4 4 4 Hottest 356 | 60 60 46 46 46 46 149 99 112 112 112 137 234 300 79 248 167 229 300 356 Shots Fired 2483 | 6 92 4 2 48 9 115 109 209 87 8 70 383 132 15 93 145 425 161 370 Gun 2016 | 6 88 4 2 48 6 104 103 208 85 8 65 154 92 15 53 119 397 148 311 Cannon 374 | . . . . . . 11 1 . . . 3 217 40 . 40 15 . . 47 Launcher 46 | . 4 . . . 3 . 5 1 2 . 2 11 . . . . 8 4 6 Special 47 | . . . . . . . . . . . . 1 . . . 11 20 9 6 Kinetic 1837 | 3 82 4 2 48 6 104 103 208 85 8 68 281 96 15 53 108 290 88 185 Thermal 328 | . . . . . . 11 1 . . . . 56 36 . 33 11 50 27 103 Explosive 25 | . 4 . . . . . 5 1 2 . 2 11 . . . . . . . Electromagnetic 246 | 3 6 . . . 3 . . . . . . 34 . . 7 15 65 37 76 Robot Hit Streak 62 | 5 27 4 . 11 5 27 35 58 23 43 23 40 16 14 26 33 39 62 58 Robot Miss Streak 6 | 1 2 . . 3 1 3 3 3 4 1 3 6 3 1 2 1 2 2 2 Penetration Max 1 | . . . . . . . . . . . . 1 . . 1 1 1 1 1 Secondary Targets 45 | . 1 . . . . . 4 5 4 . 6 . . 1 . 1 13 6 4 Max Gunslinging Chain 2 | . 1 . . . . . 1 1 1 . 1 . . 1 . 1 2 1 1 Shots Hit Robots 2020 | 5 64 2 . 35 83 84 88 154 68 7 56 246 99 11 79 130 357 155 297 Core Hits 1302 | 1 31 2 . 15 50 51 63 191 88 14 69 236 37 3 31 37 169 73 141 Critical Hits 74 | . 1 . . 2 5 3 . . . . . 13 4 . 1 1 13 13 18 Critical Kills 35 | . . . . . 3 1 . . . . . 5 . . 1 1 7 7 10 Critical Parts Destroyed 37 | . 1 . . 1 2 2 . . . . . 8 4 . . . 6 5 8 Melee Attacks 309 | . 18 . . 2 152 22 . . . . . . . . 10 20 10 19 56 Impact 26 | . 18 . . . . . . . . . . . . . . . 5 . 3 Slashing 99 | . . . . . . . . . . . . . . . 10 12 5 19 53 Piercing 176 | . . . . 2 152 22 . . . . . . . . . . . . . Sneak Attacks 10 | . . . . . 8 . . . . . . . . . . 1 . . 1 Combat Hostiles 1 | . . . . . 1 . . . . . . . . . . . . . . Follow-up Attacks . | . . . . . . . . . . . . . . . . . . . . Damage Inflicted 60967 | 60 1266 29 . 505 2827 1712 2024 3252 1982 175 1548 14997 2473 166 2847 2557 9245 3395 9907 Guns 34332 | 60 825 29 . 505 57 1263 1551 3203 1282 175 1076 2640 1453 166 1203 1678 8254 2511 6401 Cannons 9753 | . . . . . . 262 . . . . 28 5440 1020 . 1039 454 . . 1510 Explosions 12880 | . 441 . . . 215 44 473 49 700 . 444 6917 . . 282 . 991 465 1859 Melee 3991 | . . . . . 2555 143 . . . . . . . . 323 425 . 419 126 Ramming 11 | . . . . . . . . . . . . . . . . . . . 11 Kinetic 29231 | 35 750 29 . 505 57 1263 1551 3203 1282 175 1104 3792 1571 166 1203 1489 6210 1426 3420 Thermal 17940 | . . . . . . 262 . . . . . 9376 902 . 1183 189 1178 687 4163 Explosive 3320 | . 441 . . . . 44 473 49 700 . 444 1169 . . . . . . . Electromagnetic 6474 | 25 75 . . . 215 . . . . . . 660 . . 138 454 1857 863 2187 Impact . | . . . . . . . . . . . . . . . . . . . . Slashing 1293 | . . . . . . . . . . . . . . . 323 425 . 419 126 Piercing 2698 | . . . . . 2555 143 . . . . . . . . . . . . . Highest Corruption 22 | . . . . . 6 1 2 3 3 . 1 10 10 10 3 8 11 7 22 Average Corruption 5 | . . . . . 6 1 1 2 3 . 1 5 10 10 1 7 6 6 11 Corruption Purged 4 | . . . . . . . . . . . . 4 . . . . . . . Effects 540 | . . . . . 3 2 12 26 12 . 2 105 67 8 4 37 93 37 132 Message Errors 77 | . . . . . . . 5 9 2 . 1 13 9 1 2 7 6 4 18 Matter Fused 85 | . . . . . . . . 1 2 . . 23 9 2 . 5 15 9 19 Heat Flow Errors 45 | . . . . . 1 . . 1 1 . . 12 5 . . 4 12 4 5 Energy Discharges 56 | . . . . . 1 . 1 4 3 . . 12 7 1 1 4 8 6 8 Parts Rejected 7 | . . . . . . . . . . . . 1 1 . . . 2 . 3 Data Loss (minor) 48 | . . . . . 1 1 2 9 1 . . 6 4 . . 5 8 3 8 Data Loss (major) 12 | . . . . . . . . . . . . . 3 . . . 3 1 5 Misfires 10 | . . . . . . . . . . . . 2 2 1 . 1 1 1 2 Alerts 5 | . . . . . . . . . . . . . 2 1 . . . . 2 Misdirections 19 | . . . . . . . . . . . . 1 8 . . . 3 . 7 Targeting Errors 149 | . . . . . . 1 3 2 3 . 1 26 11 1 1 11 33 7 49 Weapon Failures 27 | . . . . . . . 1 . . . . 9 6 1 . . 2 2 6 Overload Shots . | . . . . . . . . . . . . . . . . . . . . Overflow Damage 1926 | . . . . . 124 4 42 . 69 . 14 1107 12 . 171 . 21 . 362 Projectiles 859 | . . . . . . 4 . . . . . 675 12 . 66 . . . 102 Explosions 867 | . . . . . 10 . 42 . 69 . 14 432 . . 105 . 21 . 174 Melee 200 | . . . . . 114 . . . . . . . . . . . . . 86 Knockbacks 32 | . . . . . . . . . . . . 24 4 . . . . . 4 Impact . | . . . . . . . . . . . . . . . . . . . . Kinetic 30 | . . . . . . . . . . . . 22 4 . . . . . 4 Secondary 2 | . . . . . . . . . . . . 2 . . . . . . . Self-Inflicted Damage 1179 | . 29 . . . 13 . . . . . . 514 . . 271 . 117 . 235 Shots 41 | . 1 . . . 2 . . . . . . 15 . . 4 . 10 . 9 Rammed . | . . . . . . . . . . . . . . . . . . . . Targets Rammed 1 | . . . . . . . . . . . . . . . . . . . 1 Kicked 1 | . . . . . . . . . . . . . . . . . . . 1 Crushed . | . . . . . . . . . . . . . . . . . . . . Highest Temperature 633 | . 69 8 8 21 279 291 273 201 277 27 136 581 540 18 268 394 633 483 463 Average Temperature 128 | . 19 6 6 7 112 59 85 50 58 15 47 155 134 13 96 121 172 139 159 Received Heat Transfer 4995 | . 162 . . 45 1008 102 393 273 261 . 126 669 132 . 72 183 543 306 720 Effects 96 | . . . . . . . 1 . . . . 31 3 . . 3 52 4 2 Shutdowns 27 | . . . . . . . . . . . . 6 1 . . . 20 . . Energy Bleed 15 | . . . . . . . . . . . . 4 . . . 1 5 3 2 Interference 19 | . . . . . . . 1 . . . . 8 . . . 2 8 . . Matter Decay 5 | . . . . . . . . . . . . 1 . . . . 4 . . Short Circuit 10 | . . . . . . . . . . . . 4 . . . . 5 1 . Damage (minor) 6 | . . . . . . . . . . . . 3 . . . . 3 . . Damage (major) 12 | . . . . . . . . . . . . 4 2 . . . 6 . . Damage (core) 2 | . . . . . . . . . . . . 1 . . . . 1 . . Siege Activations 31 | . . . . . . . . . . . . . . . . 2 16 6 7 Total Turns 834 | . . . . . . . . . . . . . . . . 45 332 152 305 Longest Duration 97 | . . . . . . . . . . . . . . . . 32 55 47 97 Robots Corrupted 10 | . . . . . . . . . . . . . . . . . 5 3 2 Combat Hostiles 10 | . . . . . . . . . . . . . . . . . 5 3 2 Parts Fried 38 | . 1 . . . . . . . . . . 4 . . 2 4 17 4 6 Impact Corruptions . | . . . . . . . . . . . . . . . . . . . . Robots Melted 4 | . . . . . . . . . . . . 3 . . . . 1 . . Combat Hostiles 4 | . . . . . . . . . . . . 3 . . . . 1 . . Parts Melted 34 | . . . . . . . . . . . . 9 . . 2 . 6 2 15 Heat Transferred 19530 | . . . . . . 370 . . . . . 9144 951 . 1400 296 1923 977 4469 Parts Sabotaged . | . . . . . . . . . . . . . . . . . . . . Parts Stolen 10 | . . . . . . . . . . . . . 9 1 . . . . . Parts Stripped . | . . . . . . . . . . . . . . . . . . . . Power Chain Reactions 13 | . . . . . . . . . . . . 1 . . . . 1 1 10 Missiles Intercepted . | . . . . . . . . . . . . . . . . . . . . Alert | -11 -10 -10 -10 -9 -8 -7 -7 -7 -7 -6 -6 -5 -5 -5 -4 -4 -3 -2 -1 ------- Run | Scr Mat Min Exi Min Mat Fac Gar Fac Gar Fac Gar Fac Upp Upp Fac Gar Res Res Acc Peak Influence 2033 | 5 261 52 . 89 267 186 738 385 604 349 690 2033 . . 348 492 452 619 384 Average Influence 237 | 1 127 49 . 38 63 100 590 180 271 285 548 462 . . 201 293 234 406 185 Maximum Alert Level 5 | . 1 . . . 1 . 3 1 2 1 2 5 . . 1 2 2 2 1 Low Security (%) 52 | . . . . . . . . . . . . . . . . . . . . Level 1 32 | . . . . . . . . . . . . . . . . . . . . Level 2 10 | . . . . . . . . . . . . . . . . . . . . Level 3 2 | . . . . . . . . . . . . . . . . . . . . Level 4 . | . . . . . . . . . . . . . . . . . . . . Level 5 . | . . . . . . . . . . . . . . . . . . . . High Security . | . . . . . . . . . . . . . . . . . . . . Max Security . | . . . . . . . . . . . . . . . . . . . . Squads Dispatched 73 | . 3 . . 1 6 6 . 7 . 1 . 18 . . 4 . 11 7 9 Investigation 11 | . 3 . . 1 3 1 . . . . . . . . . . 1 . 2 Extermination 29 | . . . . . . 4 . 4 . . . 6 . . 2 . 5 3 5 Reinforcement 16 | . . . . . 3 . . 2 . . . 4 . . 1 . 3 1 2 Assault 5 | . . . . . . . . . . . . 3 . . . . . 2 . Garrison 12 | . . . . . . 1 . 1 . 1 . 5 . . 1 . 2 1 . Intercept . | . . . . . . . . . . . . . . . . . . . . Construction Impeded 8 | . . . . . 1 . . . . . . 3 . . 1 . 1 . 2 Haulers Reinforced 2 | . . . . . . . . . . . . . . . . . 1 1 . Stealth | -11 -10 -10 -10 -9 -8 -7 -7 -7 -7 -6 -6 -5 -5 -5 -4 -4 -3 -2 -1 --------- Run | Scr Mat Min Exi Min Mat Fac Gar Fac Gar Fac Gar Fac Upp Upp Fac Gar Res Res Acc Distress Signals 19 | . 1 . . . 6 . . 1 . . . 4 . . 1 . 1 . 5 Communications Jammed 28 | . . . . . . . . . . . . . . . 5 . . . 23 Distress Signals 24 | . . . . . . . . . . . . . . . 5 . . . 19 Times Spotted 541 | . 24 . . 4 51 25 25 34 23 2 19 86 19 2 18 24 74 36 75 Peak Tracking Total 10 | . 5 . . 2 8 5 9 4 7 1 5 9 4 2 5 6 7 6 10 Tactical Retreats 26 | . 1 . . . 4 1 3 . 1 . . 6 . . . 2 . 2 6 Traps | -11 -10 -10 -10 -9 -8 -7 -7 -7 -7 -6 -6 -5 -5 -5 -4 -4 -3 -2 -1 ------- Run | Scr Mat Min Exi Min Mat Fac Gar Fac Gar Fac Gar Fac Upp Upp Fac Gar Res Res Acc Traps Triggered 47 | . 1 . . . 1 4 6 10 12 . 6 2 . . . . 5 . . Indirectly . | . . . . . . . . . . . . . . . . . . . . Trap Hack Attempts . | . . . . . . . . . . . . . . . . . . . . Triggered . | . . . . . . . . . . . . . . . . . . . . Disarmed . | . . . . . . . . . . . . . . . . . . . . Reprogrammed 6 | . 6 . . . . . . . . . . . . . . . . . . Reused . | . . . . . . . . . . . . . . . . . . . . Traps Extracted . | . . . . . . . . . . . . . . . . . . . . Installed . | . . . . . . . . . . . . . . . . . . . . Triggered 1 | . . . . 1 . . . . . . . . . . . . . . . Exploded 2 | . . . . 2 . . . . . . . . . . . . . . . Machines | -11 -10 -10 -10 -9 -8 -7 -7 -7 -7 -6 -6 -5 -5 -5 -4 -4 -3 -2 -1 ---------- Run | Scr Mat Min Exi Min Mat Fac Gar Fac Gar Fac Gar Fac Upp Upp Fac Gar Res Res Acc Machines Disabled 52 | . 5 . . 1 3 1 1 1 1 . 1 24 . . 7 3 3 1 . Max in Single Turn 5 | . 2 . . 1 1 1 1 1 1 . 1 4 . . 5 1 1 . . Garrison Access 5 | . . . . . . . . . . . . 2 . . . . 1 1 1 Garrison Relay 6 | . . . . . . . 1 . 1 . 1 . . . . 3 . . . Machines Sabotaged 1 | . . . . . 1 . . . . . . . . . . . . . . Garrisons Compromised . | . . . . . . . . . . . . . . . . . . . . Overloaded Fab Kills . | . . . . . . . . . . . . . . . . . . . . Fab Network Shutdowns . | . . . . . . . . . . . . . . . . . . . . Hacking | -11 -10 -10 -10 -9 -8 -7 -7 -7 -7 -6 -6 -5 -5 -5 -4 -4 -3 -2 -1 --------- Run | Scr Mat Min Exi Min Mat Fac Gar Fac Gar Fac Gar Fac Upp Upp Fac Gar Res Res Acc Machines Accessed 68 | . 11 1 4 1 8 10 . 8 . 2 . 1 2 . 3 . 6 2 9 Terminals 33 | . 8 . . . 6 5 . 3 . 1 . . . . 2 . 3 2 3 Fabricators 6 | . . . . . . 2 . 1 . . . 1 . . . . . . 2 Repair Stations 7 | . 1 . . . 1 1 . 2 . . . . . . . . 2 . . Recycling Units 4 | . 2 . . . . 1 . . . . . . . . . . . . 1 Scanalyzers 4 | . . . . . 1 . . 1 . . . . . . . . . . 2 Garrison Access 6 | . . . . . . 1 . 1 . 1 . . . . 1 . 1 . 1 Total Hacks 217 | . 43 1 48 1 24 21 . 31 . 3 . 2 2 . 6 . 16 4 15 Successful 165 | . 30 1 48 1 15 12 . 24 . 1 . . 2 . 4 . 11 2 14 Failed 50 | . 11 . . . 9 9 . 7 . 2 . 2 . . 2 . 5 2 1 Catastrophic 3 | . . . . . 1 . . 1 . . . . . . . . 1 . . Database Lockouts 2 | . 2 . . . . . . . . . . . . . . . . . . Manual 64 | . 11 . 1 . 20 8 . 5 . 2 . . . . 2 . 7 3 5 Terminals 108 | . 35 . . . 21 12 . 13 . 2 . . . . 5 . 10 4 6 Fabricators 7 | . . . . . . 2 . 1 . . . 2 . . . . . . 2 Repair Stations 27 | . 4 . . . 2 3 . 13 . . . . . . . . 5 . . Recycling Units 9 | . 4 . . . . 3 . . . . . . . . . . . . 2 Scanalyzers 7 | . . . . . 1 . . 2 . . . . . . . . . . 4 Garrison Access 7 | . . . . . . 1 . 2 . 1 . . . . 1 . 1 . 1 Terminal Hacks 85 | . 16 1 48 1 5 2 . 3 . . . . 2 . 1 . 3 . 3 Record 63 | . 7 . 48 . 3 1 . 1 . . . . . . 1 . 2 . . Prototype ID Bank 3 | . 3 . . . . . . . . . . . . . . . . . . Open Door 4 | . . 1 . 1 . . . . . . . . 2 . . . . . . Emergency Access Points 2 | . 2 . . . . . . . . . . . . . . . . . . Garrison Index 1 | . . . . . . 1 . . . . . . . . . . . . . Unreport Threat 3 | . 1 . . . . . . 1 . . . . . . . . . . 1 Locate Traps 1 | . 1 . . . . . . . . . . . . . . . . . . Reprogram Traps 1 | . 1 . . . . . . . . . . . . . . . . . . Recall Investigation 1 | . . . . . 1 . . . . . . . . . . . . . . Zone Layout 6 | . 1 . . . 1 . . 1 . . . . . . . . 1 . 2 Fabricator Hacks 3 | . . . . . . 1 . 1 . . . . . . . . . . 1 Network Status 2 | . . . . . . . . 1 . . . . . . . . . . 1 Build 1 | . . . . . . 1 . . . . . . . . . . . . . Repair Station Hacks 25 | . 4 . . . 2 2 . 13 . . . . . . . . 4 . . Scan Component 13 | . 2 . . . 1 1 . 7 . . . . . . . . 2 . . Repair 12 | . 2 . . . 1 1 . 6 . . . . . . . . 2 . . Recycling Unit Hacks 6 | . 3 . . . . 2 . . . . . . . . . . . . 1 Report Inventory 4 | . 2 . . . . 1 . . . . . . . . . . . . 1 Retrieve Components 2 | . 1 . . . . 1 . . . . . . . . . . . . . Scanalyzer 7 | . . . . . 1 . . 2 . . . . . . . . . . 4 Insert Component 5 | . . . . . 1 . . 2 . . . . . . . . . . 2 Analyze 2 | . . . . . . . . . . . . . . . . . . . 2 Garrison Access Hacks 7 | . . . . . . 1 . 2 . 1 . . . . 1 . 1 . 1 Unlock Access 4 | . . . . . . 1 . 1 . 1 . . . . 1 . . . . Seal Access 2 | . . . . . . . . . . . . . . . . . 1 . 1 Coupler Status 1 | . . . . . . . . 1 . . . . . . . . . . . Unauthorized Hacks 80 | . 14 . . . 21 12 . 8 . 2 . . . . 4 . 7 4 8 Terminals 31 | . 7 . . . 7 4 . 3 . . . . . . 2 . 3 2 3 Botnet 30 | . 7 . . . 6 4 . 3 . . . . . . 2 . 3 2 3 Sabotage 1 | . . . . . 1 . . . . . . . . . . . . . . Fabricators 1 | . . . . . . . . . . . . . . . . . . . 1 Download 1 | . . . . . . . . . . . . . . . . . . . 1 Repair Stations . | . . . . . . . . . . . . . . . . . . . . Recycling Units . | . . . . . . . . . . . . . . . . . . . . Scanalyzers . | . . . . . . . . . . . . . . . . . . . . Garrison Access . | . . . . . . . . . . . . . . . . . . . . Data Cores Recovered 2 | . . . . . . 1 . . . . . . . . 1 . . . . Used . | . . . . . . . . . . . . . . . . . . . . Hacking Detections 52 | . 9 . . . 7 8 . 8 . 2 . 1 . . 3 . 5 2 7 Full Trace Events 2 | . . . . . 1 . . . . . . . . . . . 1 . . Feedback Events 1 | . . . . . . . . . . . . . . . . . 1 . . Corruption 1 | . . . . . . . . . . . . . . . . . 1 . . Feedback Blocked . | . . . . . . . . . . . . . . . . . . . . Robot Schematics Acquired . | . . . . . . . . . . . . . . . . . . . . Robots Built 4 | . . . . . . 4 . . . . . . . . . . . . . Matter 252 | . . . . . . 252 . . . . . . . . . . . . . Time 67 | . . . . . . 67 . . . . . . . . . . . . . Total Robot Build Rating 16 | . . . . . . 16 . . . . . . . . . . . . . Part Schematics Acquired 2 | . . . . . . . . . . . . . . . . . . . 2 Parts Built . | . . . . . . . . . . . . . . . . . . . . Matter . | . . . . . . . . . . . . . . . . . . . . Time . | . . . . . . . . . . . . . . . . . . . . Total Part Build Rating . | . . . . . . . . . . . . . . . . . . . . Parts Repaired 12 | . 2 . . . 1 1 . 6 . . . . . . . . 2 . . Time 324 | . 52 . . . 38 16 . 192 . . . . . . . . 26 . . Parts Recycled . | . . . . . . . . . . . . . . . . . . . . Recycled Matter . | . . . . . . . . . . . . . . . . . . . . Retrieved Matter . | . . . . . . . . . . . . . . . . . . . . Retrieved Components 19 | . 9 . . . . 10 . . . . . . . . . . . . . Parts Scanalyzed 2 | . . . . . . . . . . . . . . . . . . . 2 Part Schematics Acquired 1 | . . . . . . . . . . . . . . . . . . . 1 Parts Damaged . | . . . . . . . . . . . . . . . . . . . . Bothacking | -11 -10 -10 -10 -9 -8 -7 -7 -7 -7 -6 -6 -5 -5 -5 -4 -4 -3 -2 -1 ------------ Run | Scr Mat Min Exi Min Mat Fac Gar Fac Gar Fac Gar Fac Upp Upp Fac Gar Res Res Acc Used RIF Installer 4 | . . . . . . . 1 . 1 . 1 . . . . 1 . . . Coupler Efficiency 2 | . . . . . . . . . 1 . 1 . . . . . . . . Patrol Navigation 1 | . . . . . . . . . . . . . . . . 1 . . . Robots Hacked 37 | . . . . . . . . . . . . 1 . . . 12 15 5 4 Non-combat 7 | . . . . . . . . . . . . 1 . . . . 2 1 3 Combat 30 | . . . . . . . . . . . . . . . . 12 13 4 1 Robot Hacks Applied 40 | . . . . . . . . . . . . 1 . . . 12 15 7 5 parse_system 1 | . . . . . . . . . . . . . . . . . . . 1 generate_anomaly 1 | . . . . . . . . . . . . . . . . . . 1 . start_evac 1 | . . . . . . . . . . . . . . . . . 1 . . find_recycling 1 | . . . . . . . . . . . . 1 . . . . . . . purge_threat 1 | . . . . . . . . . . . . . . . . . 1 . . link_fov 3 | . . . . . . . . . . . . . . . . . . 1 2 spike_heat 1 | . . . . . . . . . . . . . . . . . . 1 . overload_power 3 | . . . . . . . . . . . . . . . . . 2 1 . amplify_resonance 1 | . . . . . . . . . . . . . . . . . . . 1 disable_weapons 1 | . . . . . . . . . . . . . . . . . . . 1 overwrite_iff 5 | . . . . . . . . . . . . . . . . 4 . 1 . streamctrl_high 5 | . . . . . . . . . . . . . . . . 1 4 . . formatsys_high 16 | . . . . . . . . . . . . . . . . 7 7 2 . Relay Couplers Released 24 | . . . . . . . 4 . 4 . 3 1 . . . 10 . 2 . Machine Destruction 24 | . . . . . . . 4 . 4 . 3 1 . . . 10 . 2 . Attached 14 | . . . . . . . . . . . . 2 . . . 7 4 . 1 Robots Rewired . | . . . . . . . . . . . . . . . . . . . . Allies Hacked 1 | . . . . . . . . . . . . . . . . . 1 . . Hacks Repelled . | . . . . . . . . . . . . . . . . . . . . Allies | -11 -10 -10 -10 -9 -8 -7 -7 -7 -7 -6 -6 -5 -5 -5 -4 -4 -3 -2 -1 -------- Run | Scr Mat Min Exi Min Mat Fac Gar Fac Gar Fac Gar Fac Upp Upp Fac Gar Res Res Acc Total Allies 30 | . . . . . . 4 . . . . . . . . . 12 11 3 . Largest Group 4 | . . . . . . 4 . . . . . . . . . 3 2 2 . Highest-Rated Group 141 | . . . . . . 48 . . . . . . . . . 141 112 133 . Highest-Rated Ally 69 | . . . . . . 12 . . . . . . . . . 47 64 69 . Total Orders 9 | . . . . . . 3 . . . . . . . . . 4 1 1 . GOTO 5 | . . . . . . 1 . . . . . . . . . 2 1 1 . FOLLOW 4 | . . . . . . 2 . . . . . . . . . 2 . . . Ally Attacks 119 | . . . . . . 19 . . . . . . . . . 55 37 8 . Total Damage 3017 | . . . . . . 282 . . . . . . . . . 1149 1018 568 . Kills 20 | . . . . . . 4 . . . . . . . . . 5 8 3 . Allies Corrupted . | . . . . . . . . . . . . . . . . . . . . Allies Melted . | . . . . . . . . . . . . . . . . . . . . Intel | -11 -10 -10 -10 -9 -8 -7 -7 -7 -7 -6 -6 -5 -5 -5 -4 -4 -3 -2 -1 ------- Run | Scr Mat Min Exi Min Mat Fac Gar Fac Gar Fac Gar Fac Upp Upp Fac Gar Res Res Acc Robot Analysis Total . | . . . . . . . . . . . . . . . . . . . . Derelict Logs Recovered 2 | . . 1 . . . . . . . . . . 1 . . . . . . Drone Launches 3 | . . . . . . . . . . . . . . . . . . . 3 Drone Recoveries . | . . . . . . . . . . . . . . . . . . . . Exploration | -11 -10 -10 -10 -9 -8 -7 -7 -7 -7 -6 -6 -5 -5 -5 -4 -4 -3 -2 -1 ------------- Run | Scr Mat Min Exi Min Mat Fac Gar Fac Gar Fac Gar Fac Upp Upp Fac Gar Res Res Acc Turns Passed 26675 | 66 1024 249 1272 916 3476 1779 1005 2507 788 263 725 2910 1254 240 1117 1077 2661 1028 2318 Spaces Moved 10638 | 41 772 156 730 370 1118 771 468 968 318 137 333 805 580 114 466 468 943 326 754 Core 5 | 1 . . . . . . . . . . . 2 . . . . . . 2 Treads 8260 | . . . . . 1080 771 468 968 318 137 333 795 580 80 421 468 943 326 572 Legs 1587 | . 34 156 730 370 38 . . . . . . . . 34 45 . . . 180 Wheels 786 | 40 738 . . . . . . . . . . 8 . . . . . . . Hover . | . . . . . . . . . . . . . . . . . . . . Flight . | . . . . . . . . . . . . . . . . . . . . Fastest Speed 50 | 50 90 120 150 180 150 180 180 180 180 180 180 180 185 185 170 170 170 162 110 Average Speed 175 | 89 92 149 171 180 180 180 180 180 180 180 180 193 185 194 186 170 199 183 178 Slowest Speed 2500 | 100 150 150 180 180 200 180 180 200 180 180 180 2250 185 250 210 170 210 195 2500 Overloaded Moves . | . . . . . . . . . . . . . . . . . . . . Propulsion Burnouts . | . . . . . . . . . . . . . . . . . . . . Robots Hopped . | . . . . . . . . . . . . . . . . . . . . Cave-ins Triggered 2 | . . . . . 1 . . . . . . . . . . . . . 1 Exploration Rate (%) 43 | 5 95 45 93 74 66 26 52 31 52 7 54 22 81 17 17 72 31 9 20 Regions Visited 19 Branch Regions 5 Pre-discovered Areas 4 | . . 1 1 1 . . . . . . . . 1 . . . . . . Known Exits Taken 4 | . . . . . . 1 . 1 . 1 . . . . 1 . . . . Unknown Exits Taken 11 | 1 1 1 1 1 1 . . . . . . 1 1 1 . . 1 1 . Scrap Searched 3 | . . . . . . . . . . . . . 3 . . . . . . Spaces Dug 161 | . 3 . . . 58 9 . . . . . 32 . . . . 7 5 47 Terrain Destroyed 799 | . 17 . . . 58 26 7 5 4 . 6 436 32 . 71 3 13 8 113 Melee 123 | . 3 . . . 58 9 . . . . . . . . . . 7 5 41 Projectile 146 | . . . . . . . . . . . . 50 32 . 26 3 2 3 30 AOE 530 | . 14 . . . . 17 7 5 4 . 6 386 . . 45 . 4 . 42 Actions | -11 -10 -10 -10 -9 -8 -7 -7 -7 -7 -6 -6 -5 -5 -5 -4 -4 -3 -2 -1 --------- Run | Scr Mat Min Exi Min Mat Fac Gar Fac Gar Fac Gar Fac Upp Upp Fac Gar Res Res Acc Total 16411 | 60 978 171 747 582 2339 1066 571 1599 479 148 413 1807 660 123 628 652 1443 608 1337 Wait 3635 | 6 94 . . 166 982 197 27 524 90 2 37 799 2 . 74 60 215 138 222 Move 10622 | 40 771 155 729 369 1117 771 467 968 317 137 332 804 579 113 466 467 942 325 753 Hop . | . . . . . . . . . . . . . . . . . . . . Pick Up 272 | 4 16 5 8 9 29 14 5 12 3 2 3 24 15 3 11 14 51 21 23 Fast Attach 116 | 7 7 1 . 1 4 2 2 14 1 1 . 10 5 . 8 3 10 1 39 Attach 171 | . . 1 . . 13 4 3 . . 2 2 27 9 2 8 12 29 19 40 Detach 13 | . 1 . . . 2 . . . . 1 . 1 . . 1 . . 1 6 Swap 198 | . 8 . 4 2 18 8 11 8 11 . 4 10 5 . 4 21 28 20 36 Drop 189 | . 16 7 5 9 15 14 11 16 9 1 3 11 . . 16 8 22 5 21 Fire 824 | 3 47 2 1 24 7 30 33 53 24 2 20 121 45 5 30 47 132 59 139 Melee 309 | . 18 . . 2 152 22 . . . . . . . . 10 20 10 19 56 Ram . | . . . . . . . . . . . . . . . . . . . . Kick 1 | . . . . . . . . . . . . . . . . . . . 1 Crush . | . . . . . . . . . . . . . . . . . . . . Escape Stasis 61 | . . . . . . 4 12 4 24 . 12 . . . . . 4 . 1 Rewire . | . . . . . . . . . . . . . . . . . . . . Trap . | . . . . . . . . . . . . . . . . . . . . Miscellaneous . | . . . . . . . . . . . . . . . . . . . . Route ------- -11/Scrapyard -10/Materials (discovered 4 exits: [*Mat x3] / *Min) -10/Mines (discovered 2 exits: [*Mat] / *Exi) -10/Exiles (discovered 2 exits: *Min x2) -9/Mines -8/Materials (discovered 2 exits: *Fac x2) -7/Factory (discovered 2 exits: *Fac / Gar) -7/Garrison (discovered 2 exits: *Fac x2) -7/Factory (discovered 3 exits: [*Low x2] / Gar) -7/Garrison (discovered 2 exits: *Fac x2) -6/Factory -6/Garrison (discovered 2 exits: *Fac x2) -5/Factory (discovered 2 exits: *Fac / *Upp) -5/Upper Caves -5/Upper Caves -4/Factory -4/Garrison (discovered 2 exits: *Res x2) -3/Research -2/Research -1/Access History --------- Turn | Location | Event 13 | -11/Scrapyard | Discovered new exit (range 16) 67 | -11/Scrapyard | Entered Materials 310 | -10/Materials | Build established: Mutant 381 | -10/Materials | Discovered new exit (range 6) 446 | -10/Materials | Discovered new exit (range 15) 722 | -10/Materials | Central database locked down 722 | -10/Materials | Central database locked down 876 | -10/Materials | Discovered new exit (range 10) 926 | -10/Materials | Repaired Wheel 953 | -10/Materials | Repaired Lgt. Ion Engine 1013 | -10/Materials | Discovered new exit (range 13) 1091 | -10/Materials | Entered Mines 1151 | -10/Mines | Discovered new exit (range 5) 1193 | -10/Mines | Learned location of Zion (-7) 1282 | -10/Mines | Met a Derelict who couldn't figure out how to use a Trap Extractor 1334 | -10/Mines | Deemed a non-threat by the Exiles lab entrance 1334 | -10/Mines | Discovered new exit (range 5) 1340 | -10/Mines | Entered Exiles 1382 | -10/Exiles | Met 8R-AWN 1406 | -10/Exiles | Met EX-HEX 1512 | -10/Exiles | Met EX-DEC 1680 | -10/Exiles | Discovered new exit (range 14) 1799 | -10/Exiles | Met EX-BIN 1858 | -10/Exiles | Aligned with FarCom system 1860 | -10/Exiles | Given EX-Vault access code 1937 | -10/Exiles | Build established: Hauler-Mutant 1947 | -10/Exiles | Opened EX-Vault 1954 | -10/Exiles | Found Prototype Energy Cannon 1959 | -10/Exiles | Found Prototype Device 1962 | -10/Exiles | Found Prototype Storage 2000 | -10/Exiles | Warned to stay clear of 0b10 Research branches 2106 | -10/Exiles | Visited The Gauntlet 2396 | -10/Exiles | Discovered new exit (range 14) 2612 | -10/Exiles | Stole three prototypes: Superbattery, PSU Rigger, YOLO Cannon 2612 | -10/Exiles | Entered Mines 3365 | -9/Mines | Met a Derelict shopkeep closing up shop 3431 | -9/Mines | Excavation squad dispatched 3431 | -9/Mines | A large section of the Mines collapsed 3517 | -9/Mines | Discovered new exit (range 6) 3518 | -9/Mines | Learned location of Storage (-9) 3528 | -9/Mines | Entered Materials 3528 | -8/Materials | Evolved 4 slots: Propulsion x2, Utility x2 3533 | -8/Materials | Identified PSU Rigger 4551 | -8/Materials | Repaired Adv. Treads 5232 | -8/Materials | Discovered new exit (range 5) 5655 | -8/Materials | Discovered new exit (range 9) 6623 | -8/Materials | Lost 3 parts (1p2n) 6899 | -8/Materials | Crushed by falling debris 6948 | -8/Materials | Lost 3 parts (1n1u1w) 7004 | -8/Materials | Entered Factory 7004 | -7/Factory | Evolved 2 slots: Weapon x2 7006 | -7/Factory | FarCom data flow suspended 7310 | -7/Factory | Build established: Scavenger-Mutant 7375 | -7/Factory | Fabricated S-27 Virus (x4) 7820 | -7/Factory | Build established: Scavenger-Skirmisher 8087 | -7/Factory | Discovered new exit (range 5) 8258 | -7/Factory | Repaired Imp. Treads 8615 | -7/Factory | Garrison activated, responded to threat 8783 | -7/Factory | Identified exit to Garrison 8783 | -7/Factory | Entered Garrison 8806 | -7/Garrison | Triggered checkpoint 8868 | -7/Garrison | Triggered checkpoint 8906 | -7/Garrison | Garrison Relay disabled 9000 | -7/Garrison | Triggered checkpoint 9022 | -7/Garrison | Triggered checkpoint 9024 | -7/Garrison | Triggered checkpoint 9087 | -7/Garrison | Destroyed 13 combat bots 9152 | -7/Garrison | Discovered new exit (range 15) 9314 | -7/Garrison | Build established: Scavenger-Tank 9468 | -7/Garrison | Discovered new exit (range 8) 9493 | -7/Garrison | Installed Relay Interface Framework 9788 | -7/Garrison | Entered Factory 10157 | -7/Factory | Build established: Scavenger-Skirmisher 10231 | -7/Factory | Identified YOLO Cannon 10875 | -7/Factory | Discovered new exit (range 13) 11170 | -7/Factory | Discovered new exit (range 2) 11519 | -7/Factory | Repaired Flak Gun 11565 | -7/Factory | Repaired Flak Gun 11690 | -7/Factory | Repaired Lgt. Treads 11717 | -7/Factory | Repaired Lgt. Treads 11746 | -7/Factory | Repaired Lgt. Treads 11773 | -7/Factory | Repaired Lgt. Treads 12268 | -7/Factory | Garrison activated, responded to threat 12295 | -7/Factory | Identified exit to Garrison 12295 | -7/Factory | Entered Garrison 12378 | -7/Garrison | Triggered checkpoint 12568 | -7/Garrison | Discovered new exit (range 10) 12626 | -7/Garrison | Triggered checkpoint 12681 | -7/Garrison | Garrison Relay disabled 12856 | -7/Garrison | Triggered checkpoint 12856 | -7/Garrison | Triggered checkpoint 13041 | -7/Garrison | Discovered new exit (range 12) 13075 | -7/Garrison | Expanded RIF knowledge: Coupler Efficiency 13083 | -7/Garrison | Entered Factory 13083 | -6/Factory | Evolved 2 slots: Utility x2 13302 | -6/Factory | Garrison activated, responded to threat 13346 | -6/Factory | Identified exit to Garrison 13346 | -6/Factory | Entered Garrison 13380 | -6/Garrison | Build established: Scavenger-Gunner 13392 | -6/Garrison | Triggered checkpoint 13481 | -6/Garrison | Garrison Relay disabled 13562 | -6/Garrison | Triggered checkpoint 13628 | -6/Garrison | Triggered checkpoint 13660 | -6/Garrison | Destroyed 10 combat bots 13809 | -6/Garrison | Triggered checkpoint 13849 | -6/Garrison | Discovered new exit (range 13) 13972 | -6/Garrison | Triggered checkpoint 14031 | -6/Garrison | Discovered new exit (range 12) 14064 | -6/Garrison | Expanded RIF knowledge: Coupler Efficiency 14071 | -6/Garrison | Entered Factory 14071 | -5/Factory | Evolved 2 slots: Utility x2 14140 | -5/Factory | Discovered new exit (range 13) 14322 | -5/Factory | Discovered new exit (range 13) 14410 | -5/Factory | Spotted B-75 Beast 14418 | -5/Factory | Garrison activated, responded to threat 14637 | -5/Factory | Build established: Scavenger-Tank 15246 | -5/Factory | Build established: Bothacker-Skirmisher 16061 | -5/Factory | Lost 5 parts (2n1u2w) 16110 | -5/Factory | Build established: Bothacker-Tank 16274 | -5/Factory | Core integrity fell below 50% 16315 | -5/Factory | Lost 9 parts (2p2n2u3w) 16382 | -5/Factory | System corruption reached 10% 16384 | -5/Factory | Lost 4 parts (2n2w) 16407 | -5/Factory | Destroyed 8 combat bots 16538 | -5/Factory | Garrison activated, responded to threat 16743 | -5/Factory | Build established: Bothacker-Gunner 16771 | -5/Factory | First assault squad dispatched 16821 | -5/Factory | Garrison activated, responded to threat 16877 | -5/Factory | Destroyed 7 combat bots 16981 | -5/Factory | Entered Upper Caves 17064 | -5/Upper Caves | Lost 3 parts (1n2w) 17150 | -5/Upper Caves | Spotted FZ-ZF1(f) 17151 | -5/Upper Caves | Encountered a Master Thief 17164 | -5/Upper Caves | Enh. Gauss Cannon stolen by Master Thief 17165 | -5/Upper Caves | Destroyed FZ-ZF1(f) 17181 | -5/Upper Caves | Spotted 4F-7HQ(f) 17182 | -5/Upper Caves | Spotted 9M-C3L(f) 17183 | -5/Upper Caves | Encountered a Master Thief 17183 | -5/Upper Caves | Encountered a Master Thief 17191 | -5/Upper Caves | Enh. Gauss Cannon stolen by Master Thief 17192 | -5/Upper Caves | Destroyed 4F-7HQ(f) 17319 | -5/Upper Caves | Spotted OY-YLE(f) 17321 | -5/Upper Caves | Encountered a Master Thief 17326 | -5/Upper Caves | Destroyed OY-YLE(f) 17639 | -5/Upper Caves | Spotted 5G-Z5K(f) 17640 | -5/Upper Caves | Encountered a Master Thief 17640 | -5/Upper Caves | Phase Gun stolen by Master Thief 17642 | -5/Upper Caves | Destroyed 5G-Z5K(f) 17645 | -5/Upper Caves | Spotted M6-MQ5(f) 17646 | -5/Upper Caves | Encountered a Master Thief 17652 | -5/Upper Caves | Destroyed M6-MQ5(f) 17655 | -5/Upper Caves | Spotted QV-FFF(f) 17657 | -5/Upper Caves | Encountered a Master Thief 17658 | -5/Upper Caves | Matter Neutralizer stolen by Master Thief 17659 | -5/Upper Caves | Spotted UX-CGA(f) 17660 | -5/Upper Caves | Encountered a Master Thief 17661 | -5/Upper Caves | Matter Neutralizer stolen by Master Thief 17783 | -5/Upper Caves | Spotted OI-GNI(f) 17783 | -5/Upper Caves | Spotted P8-PVB(f) 17784 | -5/Upper Caves | Encountered a Master Thief 17784 | -5/Upper Caves | Encountered a Master Thief 17784 | -5/Upper Caves | Phase Gun stolen by Master Thief 17789 | -5/Upper Caves | Destroyed P8-PVB(f) 17838 | -5/Upper Caves | Spotted ZS-CZ8(f) 17839 | -5/Upper Caves | Encountered a Master Thief 17842 | -5/Upper Caves | Spotted DI-LHX(f) 17842 | -5/Upper Caves | Phase Gun stolen by Master Thief 17843 | -5/Upper Caves | Encountered a Master Thief 17849 | -5/Upper Caves | Autogun stolen by Master Thief 17980 | -5/Upper Caves | Spotted 2C-T8O(f) 17981 | -5/Upper Caves | Encountered a Master Thief 17982 | -5/Upper Caves | KE Penetrator stolen by Master Thief 18118 | -5/Upper Caves | Discovered new exit (range 18) 18235 | -5/Upper Caves | Entered another Upper Caves area 18235 | -5/Upper Caves | Discovered new exit (range 14) 18375 | -5/Upper Caves | Spotted B9-YB1(f) 18376 | -5/Upper Caves | Encountered a Master Thief 18380 | -5/Upper Caves | Spotted GC-A5J(f) 18381 | -5/Upper Caves | Encountered a Master Thief 18382 | -5/Upper Caves | Destroyed B9-YB1(f) 18384 | -5/Upper Caves | Hvy. Treads stolen by Master Thief 18475 | -5/Upper Caves | Entered Factory 18475 | -4/Factory | Evolved 2 slots: Utility x2 19458 | -4/Factory | Found Prototype Hackware 19522 | -4/Factory | Garrison activated, responded to threat 19592 | -4/Factory | Identified exit to Garrison 19592 | -4/Factory | Entered Garrison 19599 | -4/Garrison | Identified Exp. Hacking Suite 19665 | -4/Garrison | Lost 3 parts (2u1w) 19760 | -4/Garrison | Lost 5 parts (1p3u1w) 19784 | -4/Garrison | Triggered checkpoint 19838 | -4/Garrison | Garrison Relay disabled 19976 | -4/Garrison | Spotted B-86 Titan 19988 | -4/Garrison | Triggered checkpoint 20000 | -4/Garrison | Triggered checkpoint 20043 | -4/Garrison | Allies destroyed B-86 Titan 20135 | -4/Garrison | Discovered new exit (range 19) 20194 | -4/Garrison | Triggered checkpoint 20221 | -4/Garrison | Garrison Relay disabled 20334 | -4/Garrison | Triggered checkpoint 20434 | -4/Garrison | Discovered new exit (range 10) 20462 | -4/Garrison | Expanded RIF knowledge: Patrol Navigation 20518 | -4/Garrison | Triggered checkpoint 20579 | -4/Garrison | Garrison Relay disabled 20669 | -4/Garrison | Entered Research 20669 | -3/Research | Evolved 2 slots: Power x1, Utility x1 20848 | -3/Research | Repaired Hcp. Storage Unit 20929 | -3/Research | Repaired Hcp. Storage Unit 21138 | -3/Research | Spotted B-86 Titan 21144 | -3/Research | Found Gamma Bomb Array 21512 | -3/Research | Build established: Botlord-Gunner 21898 | -3/Research | Lost 3 parts (1n1u1w) 21909 | -3/Research | Build established: Bothacker-Gunner 22307 | -3/Research | Lost 3 parts (1p2w) 22713 | -3/Research | Found Gamma Bomb Array 22768 | -3/Research | System corruption reached 10% 23105 | -3/Research | Garrison activated, responded to threat 23192 | -3/Research | Core integrity fell below 50% 23319 | -3/Research | Discovered new exit (range 3) 23330 | -3/Research | Entered another Research area 23330 | -2/Research | Accompanied by 1 ally 23330 | -2/Research | Evolved 2 slots: Utility x2 23566 | -2/Research | Garrison activated, responded to threat 23699 | -2/Research | Lost 7 parts (1n1u5w) 23715 | -2/Research | Destroyed 7 combat bots 24044 | -2/Research | Lost 3 parts (1n2w) 24080 | -2/Research | First assault squad dispatched 24327 | -2/Research | Discovered new exit (range 7) 24358 | -2/Research | Entered Access 24358 | -1/Access | Evolved 2 slots: Utility x2 25159 | -1/Access | Lost 3 parts (1p1n1w) 25245 | -1/Access | Build established: Scavenger-Gunner 25757 | -1/Access | System corruption reached 10% 26012 | -1/Access | Destroyed 12 combat bots 26099 | -1/Access | Destroyed 7 combat bots 26173 | -1/Access | Core integrity fell below 50% 26248 | -1/Access | Lost 37 parts (6p8n9u14w) 26354 | -1/Access | Lost 7 parts (1p2n3u1w) 26424 | -1/Access | Core integrity fell below 20% 26449 | -1/Access | Lost 6 parts (1p1n2u2w) 26578 | -1/Access | Crushed by falling debris 26609 | -1/Access | Lost 3 parts (3u) 26648 | -1/Access | Spotted B-99 Colossus 26654 | -1/Access | Spotted B-99 Colossus 26676 | -1/Access | Destroyed by B-99 Colossus with Multirail Last Messages --------------- Slug penetrates Wall. Penetrated by Slug. Slug penetrates Wall. B-99 Colossus activates siege mode. Slug penetrates Earth. Critical hit. Biometal Leg destroyed. Acquired Centrium Leg. Biometal Leg destroyed. Penetrated by Slug. Slug penetrates Earth. Penetrated by Slug. Slug penetrates Earth. Imp. Terrain Scanner destroyed. Biometal Leg destroyed. Penetrated by Slug. Hcp. Storage Unit destroyed. Slug penetrates Earth. Lgt. Quantum Reactor destroyed. Penetrated by Slug. Map ----- +----------------------------------------------------+ | ?????????????????????????????????????????????????? | | ?????????????????????????????????????????????????? | | ?????????????????????????????????????????????????? | | ?????????????????????????????????????????????????? | | ?????????????????????????????????????????????????? | | ?????????????????????????????????????????????????? | | ?????????????????????????????????????????????????? | | ?????????????????????????????????????????????????? | | ?????????????????????????????????????????????????? | | ?????????????????????????????????????????????????? | | ?????????????????????????????????????????????????? | | ?????????????????????????????????????????????????? | | ???????????????#??????????#??????????????????????? | | ?????????????????????#???????????????????????????? | | ???????????#?????????????????????????????????????? | | ???????????????????????????????#?????????????????? | | ????????????????##???????????????????????????????? | | ?????????????????????#???????????????????????????? | | ???????????????##########????????????????????????? | | ???????????????# !!!#????????????????????????? | | ?????????#?????# !! #???##???????????????????? | | ???????????????# !! #?#?#????????????????????? | | ???????????????# #?##????##? ?????????????? | | ?????????????#?# #?#???????#??????????????? | | ???????????????# ###??##?##???????????????? | | ?????#??######## =;@#?#????#???????????????? | | ???????" ; ^gp[|##????????????? ????????? | | ???????" B ; b p/##???????????????????????? | | ???????" ;#;p;;;#######?#??????????????????? | | ??????"" ?????????????? | | ???????" "######?#??????????????????? | | ???????" ##??##???#?????????????????? | | ??????"" #############??????????????? | | ???????" ;#" *# ##?#??????????????? | | ???????" ### =%# #? ????#??????????? | | ???????" ??# # " #?? ??? ??#?????? | | ???????#######??## / """ ##????????? ??????? | | ?????????#??#?#??# # """ #? ????? ???? ????? | | ?????????????????# # " #????? #???? ??? | | ?????????##??????# # ##?????? ? ?? | | ?????????????????# # #??? ??? ? | | ?????????????#???# # #? ? ??#? ??? | | ????????????????## #####/########### ? | | ??????????????#?## ? | | ?????????????????# #?#?#?# | | ?????????????????# ##?#### | | ???????????#?????# ###???# | | ?????????????????########/#############+######???# | | ??????????????????????? ?????# ##?## | | ????????????#??????????? ?? ??# ###?# | +----------------------------------------------------+ Best States ------------- Heat Dissipation 99 Coolant Potential 80 Energy Generation 45 Energy Capacity 580 Matter Stores 500 Matter Capacity 500 Sight Range 22 Robot Scan Range 20 Terrain Scan Range 24 Terrain Scan Density 60 Jamming Range 16 Base Temperature (-) 200 Armor Coverage 450 Resistance: KI 50 Resistance: TH 20 Resistance: EX 20 Resistance: EM 20 Resistance: I 20 Resistance: S 20 Resistance: P 20 Phase Shifting 15 Evasion (%) 55 Targeting Accuracy 14 Target Analysis 8 Recoil Reduction 4 Kinecelleration 40 Offensive Hacking 38 Item Schematics ----------------- Phase Gun | -1/Access | Scanalyzed Centrium Leg | -1/Access | Downloaded Robot Schematics ------------------ None Fabricated ------------ S-27 Virus | x4 | -7/Factory | Preloaded Alien Tech Used ----------------- None Achievements -------------- Denied? Infiltrator Total Silence Challenges ------------ None Game ------ Seed FissionSensorStreamer Manual? 0 Play Time 05:37:53 Cumulative 37.9 hours Start 2019.10.28 @ 03:59:11 End 2019.10.29 @ 03:36:02 Sessions 7 Manual Loads 0 Difficulty Adventurer Special Mode None Game No. 8 Rogue -8 Adventurer 8 Explorer 0 Win Type - Total 0 Types 0/0/0/0/0/0/0 Lore% 23 Gallery% 32 Achievement% 30 Wizard Run 0 Options --------- ASCII 0 Keyboard 0 Movement Mouse Keybinds 1 Fullscreen 2 Font 18/X11Bold Map View 76x50 Tactical HUD 0 Map Filters NONE Filters NONE Steam 1 RUN: 1207170b-0eec-452f-88b2-652eb4a424d2